fUST/lending_fUST_20251015
["ID","MTS","AMOUNT","RATE_DAILY","PERIOD"]
[391270422,1760458243022,-200.92979394,0.000243,2]
[391270423,1760458243032,-160.0,0.00024313,2]
[391270424,1760458243041,-402.43064913,0.00024313,2]
[391270425,1760458243052,-417.15472785,0.00024313,2]
[391270426,1760458243063,-160.0,0.00024313,2]
[391270428,1760458243072,-160.0,0.00024313,2]
[391270429,1760458243081,-663.86015849,0.00024358,2]
[391270430,1760458243090,-3268.70525699,0.00024394,2]
[391270431,1760458243101,-200.0,0.00024466,13]
[391270433,1760458243110,-760.0,0.000245,2]
[391270435,1760458243118,-14783.68,0.00024589,2]
[391270436,1760458243128,-823.0,0.00024592,2]
[391270437,1760458243138,-823.0,0.00024592,2]
[391270438,1760458243147,-185.75595233,0.000246,2]
[391270439,1760458243159,-237.29042741,0.000246,2]
[391270440,1760458243168,-3000.0,0.000246,2]
[391270441,1760458243177,-3000.0,0.0002461,2]
[391270442,1760458243187,-3000.0,0.0002462,2]
[391270443,1760458243196,-3000.0,0.0002463,2]
[391270444,1760458243205,-3000.0,0.0002464,2]
[391270445,1760458243214,-3000.0,0.0002465,2]
[391270446,1760458243223,-380.0,0.00024658,2]
[391270447,1760458243232,-3000.0,0.0002466,2]
[391270448,1760458243242,-160.0,0.00024663,3]
[391270449,1760458243251,-3000.0,0.0002467,2]
[391270450,1760458243260,-500.0,0.00024673,2]
[391270451,1760458243269,-500.0,0.00024673,2]
[391270452,1760458243278,-500.0,0.00024673,2]
[391270453,1760458243287,-3000.0,0.0002468,2]
[391270454,1760458243296,-3849.691186,0.0002469,2]
[391270455,1760458243305,-28672.65636699,0.000247,3]
[391270456,1760458243314,-3000.0,0.00024712,2]
[391270457,1760458243324,-500.0,0.00024773,2]
[391270459,1760458243334,-500.0,0.00024773,2]
[391270461,1760458243343,-501.21425316,0.00024773,2]
[391270463,1760458243353,-634.87926624,0.00024773,2]
[391270464,1760458243362,-500.0,0.00024773,2]
[391270466,1760458243371,-500.0,0.00024773,2]
[391270468,1760458243381,-500.46309833,0.00024773,2]
[391270470,1760458243391,-500.23894583,0.00024773,2]
[391270472,1760458243402,-185.75595233,0.000248,2]
[391270473,1760458243411,-237.29042741,0.000248,2]
[391270474,1760458243420,-402.43064913,0.000248,7]
[391270476,1760458243429,-510612.493497,0.000249,2]
[391270477,1760458243439,-177.56474276,0.00024903,2]
[391270478,1760458243449,-3292.0,0.00024951,2]
[391270479,1760458243458,-709.12335112,0.00024958,2]
[391270480,1760458243468,-72948.33,0.00025,7]
[391270481,1760458243478,-342.207,0.00025003,8]
[391270482,1760458243488,-855.55408596,0.00025048,2]
[391270483,1760458243498,-447.44655504,0.00025099,7]
[391270484,1760458243507,-185.75595233,0.000251,2]
[391270485,1760458243518,-237.29042741,0.000251,2]
[391270486,1760458243528,-532.3451232,0.00025108,2]
[391270487,1760458243537,-3500.0,0.0002526,2]
[391270488,1760458243548,-237.29042741,0.000253,2]
[391270489,1760458243558,-1000.0,0.00025321,2]
[391270490,1760458243567,-1000.0,0.00025321,2]
[391270491,1760458243576,-508.02299742,0.00025321,2]
[391270492,1760458243586,-160.0,0.00025534,4]
[391270493,1760458243595,-17247.63,0.00025535,2]
[391270494,1760458243604,-754.38654374,0.00025558,2]
[391270495,1760458243614,-201.0,0.00025562,17]
[391270496,1760458243623,-1024.1197619,0.00025696,2]
[391270497,1760458243634,-4000.0,0.00025808,2]
[391270498,1760458243644,-440.50785904,0.00025868,2]
[391270499,1760458243659,-1500.0,0.00025868,2]
[391270500,1760458243669,-239.0,0.00026,2]
[391270501,1760458243679,-8364.85,0.00026027,2]
[391270502,1760458243688,-799.64973636,0.00026158,2]
[391270504,1760458243698,-484.4212913,0.00026164,2]
[391270506,1760458243707,-200.0,0.00026204,15]
[391270508,1760458243717,-15044.032566,0.00026263,2]
[391270509,1760458243727,-510.78884147,0.00026356,2]
[391270510,1760458243736,-160.0,0.00026404,5]
[391270511,1760458243746,-2005.15928884,0.00026416,2]
[391270512,1760458243755,-157.47642121,0.0002645,2]
[391270513,1760458243765,-19711.58,0.00026481,2]
[391270514,1760458243775,-72948.33,0.000266,7]
[391270515,1760458243784,-202.0,0.00026658,21]
[391270516,1760458243795,-702.771832,0.00026676,2]
[391270517,1760458243804,-1000.0,0.00026701,30]
[391270518,1760458243814,-1000.0,0.00026707,4]
[391270519,1760458243823,-844.91292899,0.00026758,2]
[391270520,1760458243832,-3268.70525699,0.00026805,2]
[391270521,1760458243842,-1152.0,0.00026806,2]
[391270522,1760458243851,-380.0,0.00026806,2]
[391270523,1760458243860,-402.43064913,0.00027,3]
[391270524,1760458243870,-1000.0,0.00027075,2]
[391270525,1760458243879,-1000.0,0.00027075,2]
[391270526,1760458243888,-151.0,0.00027075,2]
[391270527,1760458243897,-162.380719,0.00027075,2]
[391270528,1760458243910,-1000.0,0.00027075,2]
[391270529,1760458243919,-151.0,0.00027075,2]
[391270530,1760458243928,-151.0,0.00027075,2]
[391270531,1760458243937,-250.0,0.00027075,2]
[391270532,1760458243946,-1000.0,0.00027075,2]
[391270533,1760458243955,-500.0,0.00027075,2]
[391270534,1760458243964,-151.0,0.00027075,2]
[391270535,1760458243974,-250.0,0.00027075,2]
[391270536,1760458243983,-1000.0,0.00027075,2]
[391270537,1760458243991,-500.0,0.00027075,2]
[391270538,1760458244000,-151.0,0.00027075,2]
[391270539,1760458244009,-250.0,0.00027075,2]
[391270540,1760458244018,-1000.0,0.00027075,2]
[391270541,1760458244027,-500.0,0.00027075,2]
[391270542,1760458244036,-151.0,0.00027075,2]
[391270543,1760458244045,-250.0,0.00027075,2]
[391270544,1760458244058,-1000.0,0.00027075,2]
[391270545,1760458244067,-2030.296672,0.00027075,2]
[391270546,1760458244077,-500.0,0.00027075,2]
[391270547,1760458244086,-151.0,0.00027075,2]
[391270548,1760458244096,-250.0,0.00027075,2]
[391270549,1760458244105,-1000.0,0.00027075,2]
[391270550,1760458244114,-500.0,0.00027075,2]
[391270551,1760458244124,-250.0,0.00027075,2]
[391270552,1760458244133,-18603.8837,0.00027075,2]
[391270553,1760458244142,-151.0,0.00027075,2]
[391270554,1760458244153,-500.0,0.00027075,2]
[391270555,1760458244162,-151.0,0.00027075,2]
[391270556,1760458244171,-1000.0,0.00027075,2]
[391270557,1760458244180,-250.0,0.00027075,2]
[391270558,1760458244189,-151.0,0.00027075,2]
[391270559,1760458244198,-500.0,0.00027075,2]
[391270560,1760458244207,-151.0,0.00027075,2]
[391270561,1760458244216,-1000.0,0.00027075,2]
[391270562,1760458244225,-250.0,0.00027075,2]
[391270563,1760458244234,-151.0,0.00027075,2]
[391270564,1760458244243,-500.0,0.00027075,2]
[391270565,1760458244253,-151.0,0.00027075,2]
[391270566,1760458244262,-151.0,0.00027075,2]
[391270567,1760458244271,-1000.0,0.00027075,2]
[391270568,1760458244280,-250.0,0.00027075,2]
[391270569,1760458244289,-151.0,0.00027075,2]
[391270570,1760458244298,-500.0,0.00027075,2]
[391270571,1760458244307,-500.0,0.00027075,2]
[391270572,1760458244316,-151.0,0.00027075,2]
[391270573,1760458244325,-151.0,0.00027075,2]
[391270574,1760458244334,-1000.0,0.00027075,2]
[391270575,1760458244343,-250.0,0.00027075,2]
[391270576,1760458244352,-151.0,0.00027075,2]
[391270577,1760458244360,-500.0,0.00027075,2]
[391270578,1760458244369,-500.0,0.00027075,2]
[391270579,1760458244379,-151.0,0.00027075,2]
[391270580,1760458244388,-1000.0,0.00027075,2]
[391270581,1760458244397,-151.0,0.00027075,2]
[391270582,1760458244408,-151.0,0.00027075,2]
[391270583,1760458244416,-500.0,0.00027075,2]
[391270584,1760458244425,-1000.0,0.00027075,2]
[391270585,1760458244438,-250.0,0.00027075,2]
[391270586,1760458244447,-151.0,0.00027075,2]
[391270587,1760458244456,-151.0,0.00027075,2]
[391270588,1760458244466,-500.0,0.00027075,2]
[391270589,1760458244475,-151.0,0.00027075,2]
[391270590,1760458244484,-500.0,0.00027075,2]
[391270591,1760458244494,-151.0,0.00027075,2]
[391270592,1760458244503,-151.0,0.00027075,2]
[391270593,1760458244512,-250.0,0.00027075,2]
[391270594,1760458244521,-500.0,0.00027075,2]
[391270595,1760458244531,-500.0,0.00027075,2]
[391270596,1760458244541,-151.0,0.00027075,2]
[391270597,1760458244639,-157.77191756,0.00027075,2]
[391270598,1760458244650,-500.0,0.00027075,2]
[391270599,1760458244660,-250.0,0.00027075,2]
[391270600,1760458244669,-500.0,0.00027075,2]
[391270601,1760458244677,-151.0,0.00027075,2]
[391270602,1760458244686,-500.0,0.00027075,2]
[391270603,1760458244695,-250.0,0.00027075,2]
[391270604,1760458244704,-500.0,0.00027075,2]
[391270605,1760458244713,-500.0,0.00027075,2]
[391270606,1760458244722,-250.0,0.00027075,2]
[391270607,1760458244731,-151.0,0.00027075,2]
[391270608,1760458244739,-500.0,0.00027075,2]
[391270609,1760458244749,-500.0,0.00027075,2]
[391270610,1760458244758,-250.0,0.00027075,2]
[391270611,1760458244766,-151.0,0.00027075,2]
[391270612,1760458244775,-500.0,0.00027075,2]
[391270613,1760458244784,-500.0,0.00027075,2]
[391270614,1760458244793,-151.0,0.00027075,2]
[391270615,1760458244802,-250.0,0.00027075,2]
[391270616,1760458244811,-151.0,0.00027075,2]
[391270617,1760458244820,-500.0,0.00027075,2]
[391270618,1760458244829,-250.0,0.00027075,2]
[391270619,1760458244838,-151.0,0.00027075,2]
[391270620,1760458244846,-151.0,0.00027075,2]
[391270621,1760458244855,-505.53359552,0.00027075,2]
[391270622,1760458244864,-151.0,0.00027075,2]
[391270623,1760458244873,-151.0,0.00027075,2]
[391270624,1760458244882,-151.0,0.00027075,2]
[391270625,1760458244892,-151.0,0.00027075,2]
[391270626,1760458244903,-1000.0,0.00027075,2]
[391270627,1760458244913,-151.0,0.00027075,2]
[391270628,1760458244922,-1000.0,0.00027075,2]
[391270629,1760458244932,-1000.0,0.00027075,2]
[391270630,1760458244942,-151.0,0.00027075,2]
[391270631,1760458244952,-1000.0,0.00027075,2]
[391270632,1760458244963,-151.0,0.00027075,2]
[391270633,1760458244972,-1000.0,0.00027075,2]
[391270634,1760458244983,-250.0,0.00027075,2]
[391270635,1760458244992,-151.0,0.00027075,2]
[391270636,1760458245002,-1000.0,0.00027075,2]
[391270637,1760458245012,-250.0,0.00027075,2]
[391270638,1760458245022,-151.0,0.00027075,2]
[391270639,1760458245031,-1000.0,0.00027075,2]
[391270640,1760458245041,-250.0,0.00027075,2]
[391270641,1760458245050,-151.0,0.00027075,2]
[391270642,1760458245063,-250.0,0.00027075,2]
[391270643,1760458245073,-151.0,0.00027075,2]
[391270644,1760458245083,-250.0,0.00027075,2]
[391270645,1760458245093,-151.0,0.00027075,2]
[391270646,1760458245103,-279.53150536,0.00027075,2]
[391270647,1760458245113,-250.0,0.00027075,2]
[391270648,1760458245122,-151.0,0.00027075,2]
[391270649,1760458245132,-151.0,0.00027075,2]
[391270650,1760458245143,-151.0,0.00027075,2]
[391270651,1760458245156,-1000.0,0.00027075,2]
[391270652,1760458245165,-151.0,0.00027075,2]
[391270653,1760458245175,-1000.0,0.00027075,2]
[391270654,1760458245184,-151.0,0.00027075,2]
[391270655,1760458245194,-1000.0,0.00027075,2]
[391270656,1760458245205,-250.0,0.00027075,2]
[391270657,1760458245215,-1000.0,0.00027075,2]
[391270658,1760458245224,-250.0,0.00027075,2]
[391270659,1760458245234,-1000.0,0.00027075,2]
[391270660,1760458245244,-250.0,0.00027075,2]
[391270661,1760458245253,-1000.0,0.00027075,2]
[391270662,1760458245263,-250.0,0.00027075,2]
[391270663,1760458245272,-1000.0,0.00027075,2]
[391270664,1760458245281,-250.0,0.00027075,2]
[391270665,1760458245290,-1000.0,0.00027075,2]
[391270666,1760458245300,-250.0,0.00027075,2]
[391270667,1760458245310,-1000.0,0.00027075,2]
[391270668,1760458245321,-250.0,0.00027075,2]
[391270669,1760458245331,-1000.0,0.00027075,2]
[391270670,1760458245340,-1000.0,0.00027075,2]
[391270671,1760458245350,-1000.0,0.00027075,2]
[391270672,1760458245359,-1000.0,0.00027075,2]
[391270673,1760458245369,-1006.4760575,0.00027123,3]
[391270674,1760458245378,-2105.41764886,0.0002713,2]
[391270675,1760458245387,-1035.43646693,0.00027185,2]
[391270676,1760458245398,-160.0,0.00027275,6]
[391270677,1760458245411,-4609.0,0.00027329,2]
[391270678,1760458245420,-890.17612161,0.00027358,2]
[391270679,1760458245430,-8364.85,0.00027397,4]
[391270680,1760458245439,-500.0,0.00027397,30]
[391270681,1760458245449,-500.0,0.00027397,30]
[391270682,1760458245458,-500.0,0.00027397,30]
[391270683,1760458245469,-500.0,0.00027397,30]
[391270684,1760458245478,-500.0,0.00027397,30]
[391270685,1760458245487,-500.0,0.00027397,30]
[391270686,1760458245497,-500.0,0.00027397,30]
[391270687,1760458245507,-500.0,0.00027397,30]
[391270688,1760458245516,-500.0,0.00027397,30]
[391270689,1760458245527,-500.0,0.00027397,30]
[391270690,1760458245536,-500.0,0.00027397,30]
[391270691,1760458245546,-500.0,0.00027397,30]
[391270692,1760458245556,-500.0,0.00027397,30]
[391270693,1760458245567,-500.0,0.00027397,30]
[391270694,1760458245578,-500.0,0.00027397,30]
[391270695,1760458245588,-500.0,0.00027397,30]
[391270696,1760458245599,-500.0,0.00027397,30]
[391270697,1760458245610,-500.0,0.00027397,30]
[391270698,1760458245620,-500.0,0.00027397,30]
[391270699,1760458245631,-500.0,0.00027397,30]
[391270700,1760458245642,-500.0,0.00027397,30]
[391270701,1760458245658,-500.0,0.00027397,30]
[391270702,1760458245668,-500.0,0.00027397,30]
[391270703,1760458245678,-500.0,0.00027397,30]
[391270704,1760458245688,-500.0,0.00027397,30]
[391270705,1760458245698,-500.0,0.00027397,30]
[391270706,1760458245708,-470.638899,0.00027397,30]
[391270707,1760458245717,-150.0,0.00027397,5]
[391270708,1760458245727,-3694.12,0.000274,2]
[391270709,1760458245736,-7209.06,0.000274,2]
[391270710,1760458245747,-8495.4132242,0.00027401,15]
[391270711,1760458245757,-5000.0,0.00027401,14]
[391270712,1760458245767,-5000.0,0.00027401,13]
[391270713,1760458245776,-5000.0,0.00027401,14]
[391270714,1760458245787,-5000.0,0.00027401,14]
[391270715,1760458245796,-22175.52,0.00027426,2]
[391270716,1760458245806,-14574.92040571,0.000276,2]
[391270717,1760458245815,-19292.2273969,0.00027623,2]
[391270718,1760458245824,-265.11445284,0.000277,7]
[391270719,1760458245834,-238.0,0.00027753,26]
[391270720,1760458245843,-156.63,0.00027759,15]
[391270721,1760458245852,-1811.79,0.00027759,15]
[391270722,1760458245861,-532.3451232,0.00027778,2]
[391270723,1760458245870,-156.64315533,0.00027859,15]
[391270724,1760458245880,-1811.79,0.00027859,15]
[391270725,1760458245889,-935.43931424,0.00027958,2]
[391270726,1760458245901,-1811.79,0.00027959,15]
[391270727,1760458245912,-402.43064913,0.00028,10]
[391270729,1760458245922,-1811.79,0.00028059,15]
[391270730,1760458245931,-72948.33,0.000281,7]
[391270731,1760458245940,-154.610225,0.00028121,2]
[391270732,1760458245949,-160.0,0.00028145,7]
[391270733,1760458245957,-1811.79,0.00028159,15]
[391270734,1760458245967,-20006.03981059,0.00028171,2]
[391270735,1760458245976,-631.0,0.0002821,2]
[391270736,1760458245986,-2161.0,0.0002821,2]
[391270737,1760458245995,-411.0,0.0002821,2]
[391270738,1760458246004,-418.168,0.0002821,2]
[391270739,1760458246013,-150.0,0.00028252,2]
[391270740,1760458246022,-150.109,0.00028252,2]
[391270741,1760458246031,-150.0,0.00028252,2]
[391270742,1760458246040,-984.342,0.00028252,2]
[391270743,1760458246051,-1811.79,0.00028259,15]
[391270744,1760458246061,-1811.79,0.00028359,15]
[391270745,1760458246070,-24639.47,0.00028372,2]
[391270746,1760458246079,-4238.0,0.00028372,2]
[391270747,1760458246089,-168.3888056,0.00028444,2]
[391270748,1760458246099,-1811.79,0.00028459,15]
[391270749,1760458246108,-3694.12,0.000285,2]
[391270750,1760458246117,-7209.06,0.000285,2]
[391270751,1760458246127,-1400.0,0.00028517,7]
[391270752,1760458246138,-980.70250686,0.00028558,2]
[391270753,1760458246147,-1811.79,0.00028559,15]
[391270754,1760458246159,-1811.79,0.00028659,15]
[391270755,1760458246169,-1057097.50874601,0.0002871,4]
[391270764,1760458246254,-734946.34521528,0.0002871,4]
[391270765,1760458246263,-20746.26328358,0.00028719,2]
[391270766,1760458246272,-1811.79,0.00028759,15]
[391270767,1760458246281,-154.98917,0.0002876,120]
[391270769,1760458246290,-8364.85,0.00028767,6]
[391270770,1760458246300,-346.80705619,0.00028779,120]
[391270771,1760458246309,-796.36667178,0.00028784,2]
[391270772,1760458246318,-1000.0,0.00028824,5]
[391270773,1760458246327,-209.0,0.00028849,31]
[391270774,1760458246336,-1811.79,0.00028859,15]
[391270775,1760458246346,-1811.79,0.00028959,15]
[391270776,1760458246355,-10000.0,0.00029,10]
[391270777,1760458246364,-1043.15,0.00029,2]
[391270778,1760458246374,-1104.65859027,0.00029,2]
[391270779,1760458246383,-160.0,0.00029016,8]
[391270781,1760458246393,-1811.79,0.00029059,15]
[391270783,1760458246407,-4237.0,0.00029086,7]
[391270785,1760458246416,-1025.96569949,0.00029158,2]
[391270786,1760458246426,-1811.79,0.00029159,15]
[391270788,1760458246435,-1043.15,0.00029174,2]
[391270790,1760458246445,-3268.70525699,0.00029215,2]
[391270791,1760458246455,-600.0,0.00029217,2]
[391270792,1760458246465,-1613.0,0.00029219,2]
[391270793,1760458246474,-1811.79,0.00029259,15]
[391270794,1760458246564,-21513.87502507,0.00029267,2]
[391270795,1760458246575,-166.65301315,0.00029315,5]
[391270796,1760458246584,-2675.39636598,0.00029316,23]
[391270797,1760458246594,-1400.0,0.00029339,7]
[391270798,1760458246603,-1043.15,0.00029348,2]
[391270799,1760458246613,-200.0,0.0002935,120]
[391270800,1760458246624,-2490.0,0.0002935,2]
[391270801,1760458246633,-1811.79,0.00029359,15]
[391270802,1760458246643,-1000.0,0.00029371,30]
[391270803,1760458246654,-244.0,0.00029371,30]
[391270804,1760458246665,-1625.489778,0.000294,3]
[391270805,1760458246674,-500.0,0.0002941,20]
[391270806,1760458246684,-832887.3449,0.00029444,2]
[391270807,1760458246694,-151.0,0.00029444,30]
[391270808,1760458246703,-151.0,0.00029444,30]
[391270809,1760458246713,-154.167012,0.00029444,30]
[391270810,1760458246722,-153.865255,0.00029444,30]
[391270811,1760458246731,-151.0,0.00029444,30]
[391270812,1760458246740,-151.0,0.00029444,30]
[391270813,1760458246750,-151.0,0.00029444,30]
[391270814,1760458246759,-151.0,0.00029444,30]
[391270815,1760458246769,-151.0,0.00029444,30]
[391270816,1760458246778,-151.0,0.00029444,30]
[391270817,1760458246787,-151.0,0.00029444,30]
[391270818,1760458246797,-151.0,0.00029444,30]
[391270819,1760458246806,-151.0,0.00029444,30]
[391270820,1760458246815,-151.0,0.00029444,30]
[391270821,1760458246824,-151.0,0.00029444,30]
[391270822,1760458246833,-151.0,0.00029444,30]
[391270823,1760458246842,-404.366037,0.00029444,30]
[391270824,1760458246851,-404.366037,0.00029444,30]
[391270825,1760458246861,-404.366037,0.00029444,30]
[391270826,1760458246870,-404.366037,0.00029444,30]
[391270827,1760458246879,-151.0,0.00029444,30]
[391270828,1760458246888,-151.0,0.00029444,30]
[391270829,1760458246897,-151.0,0.00029444,30]
[391270830,1760458246909,-151.0,0.00029444,30]
[391270831,1760458246918,-358.453374,0.00029444,30]
[391270832,1760458246928,-358.453374,0.00029444,30]
[391270833,1760458246937,-358.453374,0.00029444,30]
[391270834,1760458246946,-358.453374,0.00029444,30]
[391270835,1760458246955,-151.0,0.00029444,30]
[391270836,1760458246965,-151.0,0.00029444,30]
[391270837,1760458246974,-151.0,0.00029444,30]
[391270838,1760458246983,-151.0,0.00029444,30]
[391270839,1760458246993,-151.0,0.00029444,30]
[391270840,1760458247002,-151.0,0.00029444,30]
[391270841,1760458247011,-151.0,0.00029444,30]
[391270842,1760458247020,-183.805701,0.00029444,30]
[391270843,1760458247030,-151.0,0.00029444,30]
[391270844,1760458247039,-151.0,0.00029444,30]
[391270845,1760458247048,-151.0,0.00029444,30]
[391270846,1760458247061,-151.0,0.00029444,2]
[391270847,1760458247070,-151.0,0.00029444,30]
[391270848,1760458247079,-151.0,0.00029444,30]
[391270849,1760458247088,-151.0,0.00029444,30]
[391270850,1760458247097,-151.0,0.00029444,30]
[391270851,1760458247107,-151.0,0.00029444,30]
[391270852,1760458247116,-151.0,0.00029444,30]
[391270853,1760458247125,-151.0,0.00029444,30]
[391270854,1760458247136,-151.0,0.00029444,30]
[391270855,1760458247145,-151.0,0.00029444,30]
[391270856,1760458247155,-190.03695,0.00029444,30]
[391270857,1760458247164,-190.03695,0.00029444,30]
[391270858,1760458247173,-190.03695,0.00029444,30]
[391270859,1760458247183,-190.03695,0.00029444,30]
[391270860,1760458247192,-151.0,0.00029444,30]
[391270861,1760458247201,-151.0,0.00029444,30]
[391270862,1760458247210,-151.0,0.00029444,30]
[391270863,1760458247219,-151.0,0.00029444,30]
[391270864,1760458247228,-151.0,0.00029444,30]
[391270865,1760458247237,-151.0,0.00029444,30]
[391270866,1760458247247,-151.0,0.00029444,30]
[391270867,1760458247256,-151.0,0.00029444,30]
[391270868,1760458247265,-151.0,0.00029444,30]
[391270869,1760458247274,-151.0,0.00029444,30]
[391270870,1760458247283,-151.0,0.00029444,30]
[391270871,1760458247293,-151.0,0.00029444,30]
[391270872,1760458247301,-339.48115,0.00029444,30]
[391270873,1760458247310,-339.48115,0.00029444,30]
[391270874,1760458247320,-339.48115,0.00029444,30]
[391270875,1760458247329,-151.0,0.00029444,30]
[391270876,1760458247338,-153.330675,0.00029444,30]
[391270877,1760458247347,-339.48115,0.00029444,30]
[391270878,1760458247356,-151.0,0.00029444,30]
[391270879,1760458247366,-747.29536,0.00029444,30]
[391270880,1760458247375,-747.29536,0.00029444,30]
[391270881,1760458247384,-747.29536,0.00029444,30]
[391270882,1760458247393,-747.29536,0.00029444,30]
[391270883,1760458247403,-151.0,0.00029444,30]
[391270884,1760458247412,-1468.276667,0.00029444,30]
[391270885,1760458247421,-151.0,0.00029444,30]
[391270886,1760458247431,-1468.276667,0.00029444,30]
[391270887,1760458247444,-151.0,0.00029444,30]
[391270888,1760458247458,-1468.276667,0.00029444,30]
[391270889,1760458247472,-1468.276667,0.00029444,30]
[391270890,1760458247484,-151.0,0.00029444,30]
[391270891,1760458247495,-151.0,0.00029444,30]
[391270892,1760458247509,-151.0,0.00029444,30]
[391270893,1760458247522,-151.0,0.00029444,30]
[391270894,1760458247536,-151.0,0.00029444,30]
[391270895,1760458247550,-188.423895,0.00029444,30]
[391270896,1760458247563,-151.0,0.00029444,30]
[391270897,1760458247577,-188.423895,0.00029444,30]
[391270898,1760458247592,-151.0,0.00029444,30]
[391270899,1760458247606,-188.423895,0.00029444,30]
[391270900,1760458247617,-188.423895,0.00029444,30]
[391270901,1760458247630,-151.0,0.00029444,30]
[391270902,1760458247642,-279.761909,0.00029444,30]
[391270903,1760458247659,-279.761909,0.00029444,30]
[391270904,1760458247671,-279.761909,0.00029444,30]
[391270905,1760458247684,-293.719913,0.00029444,30]
[391270906,1760458247695,-279.761909,0.00029444,30]
[391270907,1760458247707,-293.719913,0.00029444,30]
[391270908,1760458247718,-293.719913,0.00029444,30]
[391270909,1760458247730,-182.517589,0.00029444,30]
[391270910,1760458247742,-182.517589,0.00029444,30]
[391270911,1760458247756,-293.719913,0.00029444,30]
[391270912,1760458247769,-182.517589,0.00029444,30]
[391270913,1760458247782,-151.0,0.00029444,30]
[391270914,1760458247795,-2958.511306,0.00029444,30]
[391270915,1760458247809,-182.517589,0.00029444,30]
[391270916,1760458247819,-2958.511306,0.00029444,30]
[391270917,1760458247829,-151.0,0.00029444,30]
[391270918,1760458247840,-151.0,0.00029444,30]
[391270919,1760458247853,-151.0,0.00029444,30]
[391270920,1760458247867,-2958.511306,0.00029444,30]
[391270921,1760458247879,-154.37275,0.00029444,30]
[391270922,1760458247890,-2958.511306,0.00029444,30]
[391270923,1760458247904,-151.0,0.00029444,30]
[391270924,1760458247916,-151.0,0.00029444,30]
[391270925,1760458247929,-151.0,0.00029444,30]
[391270926,1760458247940,-151.0,0.00029444,30]
[391270927,1760458247951,-151.0,0.00029444,30]
[391270928,1760458247963,-151.0,0.00029444,30]
[391270929,1760458247975,-253.732507,0.00029444,15]
[391270930,1760458247987,-188.698079,0.00029444,30]
[391270931,1760458247999,-253.732507,0.00029444,15]
[391270932,1760458248012,-188.698079,0.00029444,30]
[391270933,1760458248024,-253.732507,0.00029444,15]
[391270934,1760458248036,-188.698079,0.00029444,30]
[391270935,1760458248048,-253.732507,0.00029444,15]
[391270936,1760458248062,-188.698079,0.00029444,30]
[391270937,1760458248073,-151.0,0.00029444,30]
[391270938,1760458248085,-151.0,0.00029444,30]
[391270939,1760458248096,-151.0,0.00029444,30]
[391270940,1760458248107,-151.0,0.00029444,30]
[391270941,1760458248119,-151.0,0.00029444,30]
[391270942,1760458248131,-203.611045,0.00029444,30]
[391270943,1760458248141,-151.0,0.00029444,30]
[391270944,1760458248155,-151.0,0.00029444,30]
[391270945,1760458248166,-151.0,0.00029444,30]
[391270946,1760458248177,-151.0,0.00029444,30]
[391270947,1760458248188,-151.0,0.00029444,30]
[391270948,1760458248200,-151.0,0.00029444,30]
[391270949,1760458248211,-284.000315,0.00029444,30]
[391270950,1760458248224,-151.0,0.00029444,30]